[Event "Titled Tuesday Blitz February 28 Early 2023"]
[White "Dubov, Daniil"]
[Black "Christiansen, Johan-Sebastian"]
[WhiteFideId "24126055"]
[BlackFideId "1512668"]
[WhiteElo "2802"]
[BlackElo "2517"]
[Result "1-0"]
[Round "03"]
[TimeControl "180+2"]
[Date "2023.02.28"]
[WhiteClock "0:00:13"]
[BlackClock "0:00:01"]

1. d4 {[%clk 0:02:58]}  Nf6 {[%clk 0:03:00]} 2. Nf3 {[%clk 0:02:57]}  c5 {[%clk 0:03:00]} 3. e3 {[%clk 0:02:43]}  g6 {[%clk 0:03:00]} 4. b3 {[%clk 0:02:28]}  Bg7 {[%clk 0:02:59]} 5. Bb2 {[%clk 0:02:24]}  cxd4 {[%clk 0:02:59]} 6. exd4 {[%clk 0:02:21]}  O-O {[%clk 0:03:00]} 7. Be2 {[%clk 0:02:19]}  d5 {[%clk 0:03:00]} 8. O-O {[%clk 0:02:18]}  Nc6 {[%clk 0:03:01]} 9. Nbd2 {[%clk 0:02:18]}  Bf5 {[%clk 0:03:02]} 10. a3 {[%clk 0:02:18]}  Rc8 {[%clk 0:03:01]} 11. Rc1 {[%clk 0:02:17]}  Ne4 {[%clk 0:02:50]} 12. Re1 {[%clk 0:02:06]}  Qb6 {[%clk 0:02:41]} 13. Nf1 {[%clk 0:02:04]}  e5 {[%clk 0:02:19]} 14. Ne3 {[%clk 0:02:04]}  exd4 {[%clk 0:02:06]} 15. Nxd5 {[%clk 0:01:49]}  Qa5 {[%clk 0:01:52]} 16. Bc4 {[%clk 0:01:44]}  Nc3 {[%clk 0:01:01]} 17. Bxc3 {[%clk 0:01:43]}  dxc3 {[%clk 0:01:01]} 18. b4 {[%clk 0:01:41]}  Qd8 {[%clk 0:00:42]} 19. b5 {[%clk 0:01:40]}  Ne5 {[%clk 0:00:32]} 20. Nxe5 {[%clk 0:01:34]}  Bxe5 {[%clk 0:00:31]} 21. Rxe5 {[%clk 0:01:35]}  Rxc4 {[%clk 0:00:32]} 22. Qe2 {[%clk 0:01:26]}  Qg5 {[%clk 0:00:26]} 23. Rd1 {[%clk 0:01:03]}  Rg4 {[%clk 0:00:23]} 24. f3 {[%clk 0:00:58]}  Rh4 {[%clk 0:00:16]} 25. g4 {[%clk 0:00:49]}  h5 {[%clk 0:00:15]} 26. Ne7+ {[%clk 0:00:49]}  Kg7 {[%clk 0:00:15]} 27. Nxf5+ {[%clk 0:00:49]}  gxf5 {[%clk 0:00:16]} 28. Rxf5 {[%clk 0:00:49]}  Qg6 {[%clk 0:00:13]} 29. Rdd5 {[%clk 0:00:49]}  f6 {[%clk 0:00:12]} 30. Rd7+ {[%clk 0:00:45]}  Rf7 {[%clk 0:00:12]} 31. Rxf7+ {[%clk 0:00:44]}  Qxf7 {[%clk 0:00:13]} 32. Qf2 {[%clk 0:00:34]}  Rh3 {[%clk 0:00:13]} 33. Qg2 {[%clk 0:00:34]}  hxg4 {[%clk 0:00:09]} 34. Rf4 {[%clk 0:00:32]}  f5 {[%clk 0:00:05]} 35. fxg4 {[%clk 0:00:30]}  Re3 {[%clk 0:00:04]} 36. gxf5+ {[%clk 0:00:25]}  Kf8 {[%clk 0:00:05]} 37. Re4 {[%clk 0:00:23]}  Rxe4 {[%clk 0:00:02]} 38. Qxe4 {[%clk 0:00:24]}  Qg7+ {[%clk 0:00:02]} 39. Kf1 {[%clk 0:00:22]}  Qg5 {[%clk 0:00:01]} 40. Qd3 {[%clk 0:00:13]}  Qf4+ {[%clk 0:00:01]} 41. Kg2 {[%clk 0:00:13]} 1-0


[Site "https://www.chess.com"]

[Event "Titled Tuesday Blitz February 28 Early 2023"]
[White "Cabarkapa, Novak"]
[Black "Deac, Bogdan-Daniel"]
[WhiteFideId "943746"]
[BlackFideId "1226380"]
[WhiteElo "2395"]
[BlackElo "2649"]
[Result "0-1"]
[Round "03"]
[TimeControl "180+2"]
[Date "2023.02.28"]
[WhiteClock "0:00:04"]
[BlackClock "0:00:09"]

1. d4 {[%clk 0:03:00]}  Nf6 {[%clk 0:02:58]} 2. Nc3 {[%clk 0:03:01]}  d5 {[%clk 0:02:58]} 3. Bf4 {[%clk 0:03:02]}  a6 {[%clk 0:02:58]} 4. e3 {[%clk 0:03:02]}  e6 {[%clk 0:02:59]} 5. g4 {[%clk 0:03:01]}  Bd6 {[%clk 0:02:53]} 6. Qf3 {[%clk 0:03:01]}  b5 {[%clk 0:02:48]} 7. g5 {[%clk 0:03:01]}  Nfd7 {[%clk 0:02:48]} 8. O-O-O {[%clk 0:02:58]}  Bb7 {[%clk 0:02:44]} 9. Qg3 {[%clk 0:02:57]}  Bxf4 {[%clk 0:02:32]} 10. Qxf4 {[%clk 0:02:57]}  c5 {[%clk 0:02:14]} 11. Nf3 {[%clk 0:02:54]}  Nc6 {[%clk 0:02:03]} 12. h4 {[%clk 0:02:50]}  Qb8 {[%clk 0:01:59]} 13. Qg4 {[%clk 0:02:41]}  cxd4 {[%clk 0:01:51]} 14. exd4 {[%clk 0:02:40]}  Qd6 {[%clk 0:01:51]} 15. h5 {[%clk 0:02:38]}  O-O-O {[%clk 0:01:51]} 16. Kb1 {[%clk 0:02:31]}  Kb8 {[%clk 0:01:44]} 17. h6 {[%clk 0:02:28]}  g6 {[%clk 0:01:42]} 18. Ne2 {[%clk 0:02:16]}  Ka8 {[%clk 0:01:22]} 19. Qf4 {[%clk 0:02:15]}  Qe7 {[%clk 0:01:17]} 20. Nc1 {[%clk 0:02:12]}  Rhf8 {[%clk 0:00:55]} 21. Nd3 {[%clk 0:02:08]}  f6 {[%clk 0:00:55]} 22. gxf6 {[%clk 0:01:21]}  Rxf6 {[%clk 0:00:44]} 23. Qg3 {[%clk 0:01:19]}  Rdf8 {[%clk 0:00:43]} 24. Bg2 {[%clk 0:01:13]}  Nb6 {[%clk 0:00:37]} 25. Nde5 {[%clk 0:01:02]}  Nxe5 {[%clk 0:00:24]} 26. dxe5 {[%clk 0:00:54]}  Rf4 {[%clk 0:00:20]} 27. Nd4 {[%clk 0:00:53]}  Nc4 {[%clk 0:00:17]} 28. Rhf1 {[%clk 0:00:30]}  Qb4 {[%clk 0:00:10]} 29. Nb3 {[%clk 0:00:27]}  a5 {[%clk 0:00:07]} 30. a3 {[%clk 0:00:27]}  Qe7 {[%clk 0:00:06]} 31. Nd4 {[%clk 0:00:27]}  b4 {[%clk 0:00:07]} 32. a4 {[%clk 0:00:23]}  Qd7 {[%clk 0:00:06]} 33. Nb5 {[%clk 0:00:18]}  Bc6 {[%clk 0:00:05]} 34. b3 {[%clk 0:00:19]}  Bxb5 {[%clk 0:00:04]} 35. axb5 {[%clk 0:00:18]}  Na3+ {[%clk 0:00:04]} 36. Kb2 {[%clk 0:00:18]}  Qxb5 {[%clk 0:00:03]} 37. Qd3 {[%clk 0:00:17]}  Qxd3 {[%clk 0:00:03]} 38. Rxd3 {[%clk 0:00:17]}  Rxf2 {[%clk 0:00:03]} 39. Rxf2 {[%clk 0:00:18]}  Rxf2 {[%clk 0:00:03]} 40. Bxd5+ {[%clk 0:00:12]}  exd5 {[%clk 0:00:03]} 41. Rxd5 {[%clk 0:00:13]}  Rxc2+ {[%clk 0:00:03]} 42. Ka1 {[%clk 0:00:13]}  Re2 {[%clk 0:00:04]} 43. Rd7 {[%clk 0:00:11]}  Rxe5 {[%clk 0:00:03]} 44. Rxh7 {[%clk 0:00:11]}  Rh5 {[%clk 0:00:04]} 45. Ka2 {[%clk 0:00:10]}  Rh2+ {[%clk 0:00:03]} 46. Ka1 {[%clk 0:00:10]}  g5 {[%clk 0:00:04]} 47. Rh8+ {[%clk 0:00:10]}  Kb7 {[%clk 0:00:03]} 48. h7 {[%clk 0:00:11]}  Rh1+ {[%clk 0:00:03]} 49. Ka2 {[%clk 0:00:11]}  Rh2+ {[%clk 0:00:04]} 50. Ka1 {[%clk 0:00:11]}  g4 {[%clk 0:00:05]} 51. Rg8 {[%clk 0:00:02]}  Rh1+ {[%clk 0:00:05]} 52. Ka2 {[%clk 0:00:02]}  Rxh7 {[%clk 0:00:05]} 53. Rxg4 {[%clk 0:00:03]}  Rh2+ {[%clk 0:00:06]} 54. Ka1 {[%clk 0:00:03]}  Rh6 {[%clk 0:00:06]} 55. Rg7+ {[%clk 0:00:03]}  Kb6 {[%clk 0:00:07]} 56. Rg2 {[%clk 0:00:04]}  Nb5 {[%clk 0:00:07]} 57. Rf2 {[%clk 0:00:04]}  Nd4 {[%clk 0:00:07]} 58. Rb2 {[%clk 0:00:04]}  Rh3 {[%clk 0:00:07]} 59. Ka2 {[%clk 0:00:04]}  Rxb3 {[%clk 0:00:07]} 60. Rd2 {[%clk 0:00:04]}  Ra3+ {[%clk 0:00:07]} 61. Kb2 {[%clk 0:00:04]}  Kc5 {[%clk 0:00:08]} 62. Rh2 {[%clk 0:00:04]}  Kc4 {[%clk 0:00:08]} 63. Rh8 {[%clk 0:00:04]}  Rb3+ {[%clk 0:00:07]} 64. Ka2 {[%clk 0:00:04]}  Rf3 {[%clk 0:00:08]} 65. Rc8+ {[%clk 0:00:04]}  Kb5 {[%clk 0:00:08]} 66. Ka1 {[%clk 0:00:05]}  Rf1+ {[%clk 0:00:09]} 67. Ka2 {[%clk 0:00:05]}  Rf2+ {[%clk 0:00:09]} 68. Ka1 {[%clk 0:00:05]}  Ka4 {[%clk 0:00:10]} 69. Rh8 {[%clk 0:00:05]}  Ka3 {[%clk 0:00:10]} 70. Rh1 {[%clk 0:00:04]}  Nb3+ {[%clk 0:00:09]} 0-1


[Site "https://www.chess.com"]

[Event "Titled Tuesday Blitz February 28 Early 2023"]
[White "polandchessplayer"]
[Black "Lazavik, Denis"]
[BlackFideId "13515110"]
[WhiteElo "2771"]
[BlackElo "2560"]
[Result "0-1"]
[Round "03"]
[TimeControl "180+2"]
[Date "2023.02.28"]
[WhiteClock "0:00:05"]
[BlackClock "0:00:05"]

1. d4 {[%clk 0:03:00]}  Nf6 {[%clk 0:02:59]} 2. Nf3 {[%clk 0:03:00]}  d5 {[%clk 0:02:59]} 3. g3 {[%clk 0:02:56]}  c6 {[%clk 0:02:57]} 4. Bg2 {[%clk 0:02:56]}  Bf5 {[%clk 0:02:55]} 5. O-O {[%clk 0:02:56]}  e6 {[%clk 0:02:56]} 6. Bg5 {[%clk 0:02:47]}  Be7 {[%clk 0:02:49]} 7. Nbd2 {[%clk 0:02:47]}  Nbd7 {[%clk 0:02:48]} 8. c3 {[%clk 0:02:46]}  h6 {[%clk 0:02:47]} 9. Bf4 {[%clk 0:02:44]}  O-O {[%clk 0:02:42]} 10. Ne5 {[%clk 0:02:41]}  c5 {[%clk 0:02:42]} 11. Nxd7 {[%clk 0:02:36]}  Qxd7 {[%clk 0:02:23]} 12. h3 {[%clk 0:02:26]}  cxd4 {[%clk 0:02:23]} 13. cxd4 {[%clk 0:02:27]}  Rfc8 {[%clk 0:02:23]} 14. Qb3 {[%clk 0:02:20]}  Bc2 {[%clk 0:02:18]} 15. Qe3 {[%clk 0:02:17]}  Qb5 {[%clk 0:02:18]} 16. Nb3 {[%clk 0:01:32]}  Rc4 {[%clk 0:01:46]} 17. Rfe1 {[%clk 0:01:22]}  Rac8 {[%clk 0:01:42]} 18. g4 {[%clk 0:01:02]}  Nh7 {[%clk 0:01:35]} 19. Rec1 {[%clk 0:00:45]}  a5 {[%clk 0:01:04]} 20. Nd2 {[%clk 0:00:42]}  R4c6 {[%clk 0:01:03]} 21. Nf3 {[%clk 0:00:24]}  Qxb2 {[%clk 0:00:58]} 22. Ne5 {[%clk 0:00:25]}  Rc3 {[%clk 0:00:54]} 23. Qd2 {[%clk 0:00:25]}  Bb4 {[%clk 0:00:46]} 24. Bxh6 {[%clk 0:00:21]}  R3c7 {[%clk 0:00:22]} 25. Qf4 {[%clk 0:00:19]}  gxh6 {[%clk 0:00:22]} 26. e3 {[%clk 0:00:17]}  Bd6 {[%clk 0:00:20]} 27. Bf1 {[%clk 0:00:14]}  Bg6 {[%clk 0:00:16]} 28. Rxc7 {[%clk 0:00:13]}  Rxc7 {[%clk 0:00:17]} 29. Rd1 {[%clk 0:00:13]}  Ng5 {[%clk 0:00:12]} 30. h4 {[%clk 0:00:13]}  Bxe5 {[%clk 0:00:12]} 31. dxe5 {[%clk 0:00:12]}  Ne4 {[%clk 0:00:11]} 32. h5 {[%clk 0:00:11]}  Bh7 {[%clk 0:00:11]} 33. Bg2 {[%clk 0:00:09]}  Rc1 {[%clk 0:00:12]} 34. Rxc1 {[%clk 0:00:09]}  Qxc1+ {[%clk 0:00:13]} 35. Kh2 {[%clk 0:00:09]}  Qd2 {[%clk 0:00:11]} 36. Bxe4 {[%clk 0:00:10]}  dxe4 {[%clk 0:00:11]} 37. g5 {[%clk 0:00:09]}  Bf5 {[%clk 0:00:08]} 38. gxh6 {[%clk 0:00:09]}  Kh7 {[%clk 0:00:06]} 39. Qg3 {[%clk 0:00:09]}  Kxh6 {[%clk 0:00:06]} 40. Qf4+ {[%clk 0:00:10]}  Kh7 {[%clk 0:00:07]} 41. h6 {[%clk 0:00:10]}  Qd8 {[%clk 0:00:08]} 42. Qg3 {[%clk 0:00:09]}  Qg8 {[%clk 0:00:08]} 43. Qh4 {[%clk 0:00:10]}  Qg6 {[%clk 0:00:09]} 44. Qe7 {[%clk 0:00:09]}  Qxh6+ {[%clk 0:00:09]} 45. Kg1 {[%clk 0:00:09]}  Qg7+ {[%clk 0:00:10]} 46. Kf1 {[%clk 0:00:10]}  b5 {[%clk 0:00:08]} 47. Qd8 {[%clk 0:00:09]}  Bg6 {[%clk 0:00:06]} 48. Qxa5 {[%clk 0:00:07]}  Qxe5 {[%clk 0:00:06]} 49. Qd8 {[%clk 0:00:07]}  Qd5 {[%clk 0:00:06]} 50. Qh4+ {[%clk 0:00:07]}  Kg7 {[%clk 0:00:06]} 51. Qf4 {[%clk 0:00:07]}  b4 {[%clk 0:00:07]} 52. Qb8 {[%clk 0:00:06]}  Bh5 {[%clk 0:00:04]} 53. Qxb4 {[%clk 0:00:05]}  Bf3 {[%clk 0:00:05]} 54. Qb2+ {[%clk 0:00:05]}  Kh7 {[%clk 0:00:05]} 55. Kg1 {[%clk 0:00:03]}  Qd1+ {[%clk 0:00:04]} 56. Kh2 {[%clk 0:00:04]}  Qh1+ {[%clk 0:00:03]} 57. Kg3 {[%clk 0:00:05]}  Qg2+ {[%clk 0:00:03]} 58. Kf4 {[%clk 0:00:06]}  Qh2+ {[%clk 0:00:04]} 59. Kg5 {[%clk 0:00:05]}  Qh6# {[%clk 0:00:05]} 0-1


[Site "https://www.chess.com"]

[Event "Titled Tuesday Blitz February 28 Early 2023"]
[White "Bortnyk, Olexandr"]
[Black "Mikhailovsky, Vladimir"]
[WhiteFideId "14120828"]
[BlackFideId "34105414"]
[WhiteElo "2734"]
[BlackElo "2282"]
[Result "1/2-1/2"]
[Round "03"]
[TimeControl "180+2"]
[Date "2023.02.28"]
[WhiteClock "0:00:03"]
[BlackClock "0:00:10"]

1. d4 {[%clk 0:03:00]}  d6 {[%clk 0:02:55]} 2. Nc3 {[%clk 0:02:58]}  e5 {[%clk 0:02:54]} 3. Nf3 {[%clk 0:02:54]}  exd4 {[%clk 0:02:51]} 4. Nxd4 {[%clk 0:02:52]}  Nf6 {[%clk 0:02:50]} 5. g3 {[%clk 0:02:40]}  d5 {[%clk 0:02:48]} 6. Bg2 {[%clk 0:02:30]}  c6 {[%clk 0:02:38]} 7. O-O {[%clk 0:02:27]}  Be7 {[%clk 0:02:38]} 8. e4 {[%clk 0:02:21]}  dxe4 {[%clk 0:02:37]} 9. Nxe4 {[%clk 0:02:21]}  O-O {[%clk 0:02:37]} 10. Bf4 {[%clk 0:02:14]}  Na6 {[%clk 0:02:29]} 11. c3 {[%clk 0:01:57]}  Nc5 {[%clk 0:02:23]} 12. Nxc5 {[%clk 0:01:50]}  Bxc5 {[%clk 0:02:23]} 13. Nb3 {[%clk 0:01:51]}  Qxd1 {[%clk 0:02:12]} 14. Raxd1 {[%clk 0:01:52]}  Bb6 {[%clk 0:02:13]} 15. Bd6 {[%clk 0:01:48]}  Re8 {[%clk 0:02:12]} 16. Nc5 {[%clk 0:01:35]}  Re2 {[%clk 0:02:06]} 17. Na4 {[%clk 0:01:00]}  Bg4 {[%clk 0:01:52]} 18. h3 {[%clk 0:01:00]}  Bh5 {[%clk 0:01:40]} 19. g4 {[%clk 0:00:59]}  Bg6 {[%clk 0:01:41]} 20. Bf3 {[%clk 0:00:56]}  Rc2 {[%clk 0:01:16]} 21. Nxb6 {[%clk 0:00:34]}  axb6 {[%clk 0:01:14]} 22. Ba3 {[%clk 0:00:35]}  Be4 {[%clk 0:00:24]} 23. Bxe4 {[%clk 0:00:35]}  Nxe4 {[%clk 0:00:25]} 24. Rd7 {[%clk 0:00:35]}  h6 {[%clk 0:00:25]} 25. Rxb7 {[%clk 0:00:29]}  Nd2 {[%clk 0:00:25]} 26. Rd1 {[%clk 0:00:28]}  Nc4 {[%clk 0:00:25]} 27. Rdd7 {[%clk 0:00:25]}  Nxa3 {[%clk 0:00:25]} 28. bxa3 {[%clk 0:00:22]}  Rf8 {[%clk 0:00:20]} 29. Rd3 {[%clk 0:00:21]}  Rxa2 {[%clk 0:00:19]} 30. Rxb6 {[%clk 0:00:22]}  Rxa3 {[%clk 0:00:19]} 31. Rxc6 {[%clk 0:00:22]}  Ra7 {[%clk 0:00:18]} 32. c4 {[%clk 0:00:21]}  Re8 {[%clk 0:00:17]} 33. Kg2 {[%clk 0:00:22]}  Re2 {[%clk 0:00:16]} 34. Rf3 {[%clk 0:00:20]}  Rc2 {[%clk 0:00:15]} 35. Rf4 {[%clk 0:00:20]}  f6 {[%clk 0:00:14]} 36. h4 {[%clk 0:00:20]}  Kh7 {[%clk 0:00:12]} 37. h5 {[%clk 0:00:21]}  Rd7 {[%clk 0:00:08]} 38. Kg3 {[%clk 0:00:20]}  Rc3+ {[%clk 0:00:08]} 39. f3 {[%clk 0:00:19]}  Rc2 {[%clk 0:00:09]} 40. Re4 {[%clk 0:00:19]}  Rf7 {[%clk 0:00:04]} 41. Re8 {[%clk 0:00:19]}  g6 {[%clk 0:00:01]} 42. hxg6+ {[%clk 0:00:17]}  Kxg6 {[%clk 0:00:01]} 43. Rg8+ {[%clk 0:00:18]}  Kh7 {[%clk 0:00:02]} 44. Rcc8 {[%clk 0:00:18]}  f5 {[%clk 0:00:01]} 45. Rh8+ {[%clk 0:00:18]}  Kg7 {[%clk 0:00:01]} 46. Rcg8+ {[%clk 0:00:17]}  Kf6 {[%clk 0:00:02]} 47. Rxh6+ {[%clk 0:00:18]}  Ke7 {[%clk 0:00:02]} 48. Rc6 {[%clk 0:00:07]}  fxg4 {[%clk 0:00:02]} 49. Rc7+ {[%clk 0:00:05]}  Ke6 {[%clk 0:00:03]} 50. Rxf7 {[%clk 0:00:03]}  Kxf7 {[%clk 0:00:03]} 51. Rxg4 {[%clk 0:00:04]}  Kf6 {[%clk 0:00:03]} 52. Rf4+ {[%clk 0:00:02]}  Ke5 {[%clk 0:00:04]} 53. Re4+ {[%clk 0:00:02]}  Kf5 {[%clk 0:00:05]} 54. Rg4 {[%clk 0:00:02]}  Ke5 {[%clk 0:00:04]} 55. Rf4 {[%clk 0:00:02]}  Rc1 {[%clk 0:00:01]} 56. Re4+ {[%clk 0:00:02]}  Kf5 {[%clk 0:00:02]} 57. Kf2 {[%clk 0:00:03]}  Rc3 {[%clk 0:00:02]} 58. Ke2 {[%clk 0:00:04]}  Kg5 {[%clk 0:00:01]} 59. Rd4 {[%clk 0:00:02]}  Kf5 {[%clk 0:00:01]} 60. Rg4 {[%clk 0:00:03]}  Ke5 {[%clk 0:00:02]} 61. Re4+ {[%clk 0:00:03]}  Kf5 {[%clk 0:00:02]} 62. Rd4 {[%clk 0:00:01]}  Ke5 {[%clk 0:00:03]} 63. Rh4 {[%clk 0:00:01]}  Kf5 {[%clk 0:00:03]} 64. Re4 {[%clk 0:00:01]}  Kg5 {[%clk 0:00:04]} 65. Kd2 {[%clk 0:00:02]}  Rxf3 {[%clk 0:00:04]} 66. Re8 {[%clk 0:00:02]}  Kg6 {[%clk 0:00:03]} 67. c5 {[%clk 0:00:02]}  Kf7 {[%clk 0:00:04]} 68. Re5 {[%clk 0:00:01]}  Rf6 {[%clk 0:00:05]} 69. Kd3 {[%clk 0:00:02]}  Re6 {[%clk 0:00:05]} 70. Rh5 {[%clk 0:00:02]}  Ke7 {[%clk 0:00:06]} 71. Kc4 {[%clk 0:00:02]}  Kd7 {[%clk 0:00:06]} 72. Kb5 {[%clk 0:00:02]}  Kc7 {[%clk 0:00:07]} 73. Rh7+ {[%clk 0:00:03]}  Kc8 {[%clk 0:00:07]} 74. Rh8+ {[%clk 0:00:03]}  Kc7 {[%clk 0:00:07]} 75. Rh7+ {[%clk 0:00:03]}  Kc8 {[%clk 0:00:08]} 76. Rg7 {[%clk 0:00:03]}  Rf6 {[%clk 0:00:08]} 77. Rg5 {[%clk 0:00:03]}  Rh6 {[%clk 0:00:08]} 78. Rf5 {[%clk 0:00:03]}  Rg6 {[%clk 0:00:09]} 79. Rf3 {[%clk 0:00:03]}  Rh6 {[%clk 0:00:09]} 80. Ra3 {[%clk 0:00:04]}  Rg6 {[%clk 0:00:09]} 81. Ra8+ {[%clk 0:00:04]}  Kb7 {[%clk 0:00:10]} 82. Re8 {[%clk 0:00:04]}  Kc7 {[%clk 0:00:10]} 83. Re5 {[%clk 0:00:04]}  Rh6 {[%clk 0:00:11]} 84. Kc4 {[%clk 0:00:05]}  Rg6 {[%clk 0:00:10]} 85. Kd5 {[%clk 0:00:06]}  Rh6 {[%clk 0:00:11]} 86. Re7+ {[%clk 0:00:06]}  Kb8 {[%clk 0:00:11]} 87. Rd7 {[%clk 0:00:06]}  Kc8 {[%clk 0:00:11]} 88. Rd6 {[%clk 0:00:06]}  Rh5+ {[%clk 0:00:10]} 89. Kc6 {[%clk 0:00:07]}  Rh7 {[%clk 0:00:11]} 90. Rg6 {[%clk 0:00:07]}  Rc7+ {[%clk 0:00:12]} 91. Kb6 {[%clk 0:00:07]}  Rb7+ {[%clk 0:00:12]} 92. Ka6 {[%clk 0:00:07]}  Rf7 {[%clk 0:00:11]} 93. Rc6+ {[%clk 0:00:05]}  Kb8 {[%clk 0:00:10]} 94. Rd6 {[%clk 0:00:04]}  Kc7 {[%clk 0:00:10]} 95. Rh6 {[%clk 0:00:02]}  Rf1 {[%clk 0:00:10]} 96. Kb5 {[%clk 0:00:02]}  Rb1+ {[%clk 0:00:10]} 97. Kc4 {[%clk 0:00:03]}  Rc1+ {[%clk 0:00:10]} 1/2-1/2


[Site "https://www.chess.com"]

[Event "Titled Tuesday Blitz February 28 Early 2023"]
[White "Goltsev, Dmitry"]
[Black "Makarian, Rudik"]
[WhiteFideId "24176710"]
[BlackFideId "44105681"]
[WhiteElo "2302"]
[BlackElo "2419"]
[Result "0-1"]
[Round "03"]
[TimeControl "180+2"]
[Date "2023.02.28"]
[WhiteClock "0:01:24"]
[BlackClock "0:00:41"]

1. e4 {[%clk 0:02:32]}  c5 {[%clk 0:03:00]} 2. Nf3 {[%clk 0:02:32]}  e6 {[%clk 0:03:01]} 3. d4 {[%clk 0:02:33]}  cxd4 {[%clk 0:03:02]} 4. Nxd4 {[%clk 0:02:34]}  Nc6 {[%clk 0:03:02]} 5. Nc3 {[%clk 0:02:34]}  a6 {[%clk 0:03:02]} 6. Be2 {[%clk 0:02:35]}  Qc7 {[%clk 0:03:01]} 7. O-O {[%clk 0:02:35]}  Nf6 {[%clk 0:03:02]} 8. Be3 {[%clk 0:02:35]}  Be7 {[%clk 0:03:02]} 9. f4 {[%clk 0:02:35]}  d6 {[%clk 0:03:03]} 10. Bf3 {[%clk 0:02:36]}  O-O {[%clk 0:03:01]} 11. Qe2 {[%clk 0:02:36]}  Nxd4 {[%clk 0:03:01]} 12. Bxd4 {[%clk 0:02:37]}  e5 {[%clk 0:03:02]} 13. fxe5 {[%clk 0:02:37]}  dxe5 {[%clk 0:03:02]} 14. Be3 {[%clk 0:02:37]}  Be6 {[%clk 0:03:01]} 15. Rad1 {[%clk 0:02:37]}  Bc4 {[%clk 0:02:58]} 16. Qf2 {[%clk 0:02:33]}  Bxf1 {[%clk 0:02:58]} 17. Kxf1 {[%clk 0:02:34]}  Rac8 {[%clk 0:02:57]} 18. g4 {[%clk 0:02:33]}  Bb4 {[%clk 0:01:48]} 19. g5 {[%clk 0:02:31]}  Bxc3 {[%clk 0:01:45]} 20. gxf6 {[%clk 0:02:30]}  Bd4 {[%clk 0:01:46]} 21. Qg3 {[%clk 0:02:21]}  g6 {[%clk 0:01:44]} 22. Qh4 {[%clk 0:01:47]}  Bxe3 {[%clk 0:01:37]} 23. Rd3 {[%clk 0:01:46]}  Bf4 {[%clk 0:01:18]} 24. Be2 {[%clk 0:01:42]}  Qxc2 {[%clk 0:01:03]} 25. Rh3 {[%clk 0:01:43]}  Qc1+ {[%clk 0:01:01]} 26. Kg2 {[%clk 0:01:43]}  Bh6 {[%clk 0:00:55]} 27. Qxh6 {[%clk 0:01:34]}  Qxh6 {[%clk 0:00:56]} 28. Rxh6 {[%clk 0:01:35]}  Rc6 {[%clk 0:00:55]} 29. Rh3 {[%clk 0:01:33]}  Rxf6 {[%clk 0:00:54]} 30. Bc4 {[%clk 0:01:33]}  Rc8 {[%clk 0:00:48]} 31. Bd5 {[%clk 0:01:33]}  Rc2+ {[%clk 0:00:48]} 32. Kg1 {[%clk 0:01:33]}  Rxb2 {[%clk 0:00:47]} 33. Rc3 {[%clk 0:01:34]}  Kg7 {[%clk 0:00:47]} 34. h4 {[%clk 0:01:33]}  h5 {[%clk 0:00:46]} 35. a4 {[%clk 0:01:34]}  b5 {[%clk 0:00:46]} 36. a5 {[%clk 0:01:34]}  Rb1+ {[%clk 0:00:45]} 37. Kh2 {[%clk 0:01:30]}  Ra1 {[%clk 0:00:46]} 38. Rc7 {[%clk 0:01:30]}  Rxa5 {[%clk 0:00:46]} 39. Rb7 {[%clk 0:01:29]}  Ra3 {[%clk 0:00:47]} 40. Kg2 {[%clk 0:01:29]}  Rf4 {[%clk 0:00:43]} 41. Be6 {[%clk 0:01:24]}  Re3 {[%clk 0:00:40]} 42. Bd5 {[%clk 0:01:24]}  Rexe4 {[%clk 0:00:40]} 43. Bxe4 {[%clk 0:01:23]}  Rxe4 {[%clk 0:00:41]} 44. Kf3 {[%clk 0:01:24]}  Rxh4 {[%clk 0:00:41]} 45. Rb6 {[%clk 0:01:24]}  Ra4 {[%clk 0:00:41]} 0-1


[Site "https://www.chess.com"]